fUSD/lending_fUSD_20250320
["ID","MTS","AMOUNT","RATE_DAILY","PERIOD"]
[356459788,1742483478001,-500.0,0.00044931,120]
[356459789,1742483478010,-500.0,0.00044931,120]
[356459790,1742483478020,-236.12,0.00044931,120]
[356459791,1742483478031,-500.0,0.00044931,120]
[356459792,1742483478040,-1471.63,0.00044931,120]
[356459793,1742483478050,-500.0,0.00044931,120]
[356459794,1742483478060,-500.0,0.00044931,7]
[356459795,1742483478070,-500.0,0.00044931,120]
[356459796,1742483478079,-500.0,0.00044931,120]
[356459797,1742483478089,-516.15,0.00044931,120]
[356459798,1742483478099,-221.01,0.00044931,120]
[356459799,1742483478109,-1183.6,0.00044931,120]
[356459800,1742483478120,-500.0,0.00044931,120]
[356459801,1742483478130,-532.24008123,0.00044931,120]
[356459802,1742483478140,-210.5,0.00044931,120]
[356459803,1742483478149,-518.95,0.00044931,120]
[356459804,1742483478159,-500.0,0.00044931,120]
[356459805,1742483478168,-500.0,0.00044931,120]
[356459806,1742483478178,-500.0,0.00044931,120]
[356459807,1742483478188,-500.0,0.00044931,120]
[356459808,1742483478198,-500.0,0.00044931,120]
[356459809,1742483478209,-500.0,0.00044931,120]
[356459810,1742483478219,-604.61,0.00044931,120]
[356459811,1742483478229,-500.0,0.00044931,120]
[356459812,1742483478240,-559.27861166,0.00044931,120]
[356459813,1742483478250,-500.0,0.00044931,120]
[356459814,1742483478261,-500.0,0.00044931,120]
[356459815,1742483478271,-500.0,0.00044931,120]
[356459816,1742483478283,-500.0,0.00044931,120]
[356459817,1742483478294,-500.0,0.00044931,120]
[356459818,1742483478304,-222.61,0.00044931,120]
[356459819,1742483478314,-731.59,0.00044931,2]
[356459820,1742483478324,-500.0,0.00044931,120]
[356459821,1742483478333,-744.12,0.00044931,120]
[356459822,1742483478343,-500.0,0.00044931,120]
[356459823,1742483478354,-500.0,0.00044931,120]
[356459824,1742483478363,-500.0,0.00044931,120]
[356459825,1742483478372,-500.0,0.00044931,120]
[356459826,1742483478382,-500.0,0.00044931,120]
[356459827,1742483478391,-500.0,0.00044931,120]
[356459828,1742483478401,-500.0,0.00044931,120]
[356459829,1742483478411,-500.0,0.00044931,120]
[356459830,1742483478421,-500.0,0.00044931,60]
[356459831,1742483478430,-500.0,0.00044931,120]
[356459832,1742483478440,-500.0,0.00044931,120]
[356459833,1742483478449,-500.0,0.00044931,120]
[356459834,1742483478459,-500.0,0.00044931,100]
[356459835,1742483478468,-500.0,0.00044931,120]
[356459836,1742483478478,-559.23,0.00044931,120]
[356459837,1742483478488,-500.0,0.00044931,120]
[356459838,1742483478498,-567.55,0.00044931,120]
[356459839,1742483478508,-500.0,0.00044931,120]
[356459840,1742483478519,-500.0,0.00044931,120]
[356459841,1742483478531,-568.51,0.00044931,120]
[356459842,1742483478541,-271.71,0.00044931,120]
[356459843,1742483478551,-391.73,0.00044931,120]
[356459844,1742483478561,-500.0,0.00044931,120]
[356459845,1742483478572,-305.95550887,0.00044931,120]
[356459846,1742483478584,-500.0,0.00044931,120]
[356459847,1742483478594,-500.0,0.00044931,120]
[356459848,1742483478604,-500.0,0.00044931,120]
[356459849,1742483478614,-500.0,0.00044931,120]
[356459850,1742483478624,-500.0,0.00044931,120]
[356459851,1742483478634,-500.0,0.00044931,120]
[356459852,1742483478644,-500.0,0.00044931,120]
[356459853,1742483478654,-334.18476896,0.00044931,120]
[356459854,1742483478664,-500.0,0.00044931,120]
[356459855,1742483478674,-500.0,0.00044931,120]
[356459856,1742483478683,-500.0,0.00044931,120]
[356459857,1742483478693,-500.0,0.00044931,7]
[356459858,1742483478702,-500.0,0.00044931,120]
[356459859,1742483478712,-500.0,0.00044931,120]
[356459860,1742483478721,-500.0,0.00044931,120]
[356459861,1742483478731,-500.0,0.00044931,120]
[356459862,1742483478741,-500.0,0.00044931,120]
[356459863,1742483478751,-559.67,0.00044931,120]
[356459864,1742483478761,-500.0,0.00044931,120]
[356459865,1742483478770,-358.01,0.00044931,120]
[356459866,1742483478781,-500.0,0.00044931,120]
[356459867,1742483478790,-500.0,0.00044931,120]
[356459868,1742483478800,-644.58,0.00044931,120]
[356459869,1742483478810,-184.92,0.00044931,120]
[356459870,1742483478819,-218.85658374,0.00044931,120]
[356459871,1742483478828,-500.0,0.00044931,120]
[356459872,1742483478838,-500.0,0.00044931,120]
[356459873,1742483478847,-500.0,0.00044931,120]
[356459874,1742483478857,-500.0,0.00044931,120]
[356459875,1742483478867,-500.0,0.00044931,120]
[356459876,1742483478877,-456.09,0.00044931,120]
[356459877,1742483478888,-500.0,0.00044931,120]
[356459878,1742483478898,-500.0,0.00044931,120]
[356459879,1742483478908,-509.60841954,0.00044931,120]
[356459880,1742483478918,-500.0,0.00044931,120]
[356459881,1742483478928,-500.0,0.00044931,120]
[356459882,1742483478938,-500.0,0.00044931,120]
[356459883,1742483478947,-500.0,0.00044931,120]
[356459884,1742483478957,-242.81703124,0.00044931,120]
[356459885,1742483478967,-325.98,0.00044931,120]
[356459886,1742483478977,-500.0,0.00044931,120]
[356459887,1742483478986,-500.0,0.00044931,120]
[356459888,1742483478996,-500.0,0.00044931,120]
[356459889,1742483479005,-500.35,0.00044931,120]
[356459890,1742483479015,-500.0,0.00044931,120]
[356459891,1742483479025,-500.0,0.00044931,120]
[356459892,1742483479039,-626.63,0.00044931,120]
[356459893,1742483479049,-500.0,0.00044931,120]
[356459894,1742483479059,-644.23,0.00044931,120]
[356459895,1742483479069,-500.0,0.00044931,120]
[356459896,1742483479079,-500.0,0.00044931,120]
[356459897,1742483479089,-500.0,0.00044931,120]
[356459898,1742483479099,-500.0,0.00044931,120]
[356459899,1742483479109,-389.16,0.00044931,120]
[356459900,1742483479120,-597.03,0.00044931,120]
[356459901,1742483479130,-314.76456523,0.00044931,120]
[356459902,1742483479140,-500.0,0.00044931,120]
[356459903,1742483479149,-500.0,0.00044931,120]
[356459904,1742483479158,-49576.28,0.00044931,120]
[356459905,1742483479168,-500.0,0.00044931,120]
[356459906,1742483479178,-541.66,0.00044931,120]
[356459907,1742483479188,-291.52601735,0.00044931,120]
[356459908,1742483479198,-500.0,0.00044931,120]
[356459909,1742483479208,-634.63,0.00044931,120]
[356459910,1742483479217,-500.0,0.00044931,120]
[356459911,1742483479227,-500.0,0.00044931,120]
[356459912,1742483479237,-150.0,0.00044933,120]
[356459913,1742483479247,-7919.24496295,0.00044998,31]
[356459914,1742483479256,-50000.0,0.00045,45]
[356459915,1742483479266,-10018.0,0.00045,120]
[356459916,1742483479276,-4004.15,0.00045,2]
[356459917,1742483479287,-250.0,0.00045,30]
[356459918,1742483479297,-20013.59051386,0.00045,120]
[356459919,1742483479306,-60000.0,0.00045,30]
[356459920,1742483479316,-1000.0,0.00045,120]
[356459921,1742483479325,-2014.57,0.00045,90]
[356459922,1742483479335,-552.55956424,0.00045,120]
[356459923,1742483479344,-93483.85900443,0.00045,120]
[356459924,1742483479354,-1557.59,0.00045,30]
[356459925,1742483479364,-850.0,0.00045,2]
[356459926,1742483479374,-190.3769719,0.00045,120]
[356459927,1742483479383,-150.0,0.00045032,30]
[356459928,1742483479393,-500.0,0.00045091,120]
[356459929,1742483479402,-500.0,0.00045091,120]
[356459930,1742483479412,-152.0,0.0004512,19]
[356459931,1742483479422,-500.0,0.00045126,120]
[356459932,1742483479544,-1016.39,0.000452,14]
[356459933,1742483479555,-157.96,0.00045205,30]
[356459934,1742483479565,-500.0,0.00045205,120]
[356459935,1742483479576,-500.0,0.00045205,120]
[356459936,1742483479589,-1215.73,0.00045205,2]
[356459937,1742483479599,-514.25009089,0.00045205,120]
[356459938,1742483479609,-500.0,0.00045205,120]
[356459939,1742483479619,-500.0,0.00045205,120]
[356459940,1742483479629,-500.0,0.00045205,120]
[356459941,1742483479639,-500.0,0.00045205,120]
[356459942,1742483479649,-500.0,0.00045205,120]
[356459943,1742483479658,-500.0,0.00045205,120]
[356459944,1742483479669,-500.0,0.00045205,120]
[356459945,1742483479679,-500.0,0.00045205,120]
[356459946,1742483479688,-500.0,0.00045205,10]
[356459947,1742483479698,-500.0,0.00045205,120]
[356459948,1742483479707,-364.59,0.00045205,120]
[356459949,1742483479716,-475.75,0.00045205,120]
[356459950,1742483479726,-704.86,0.00045205,120]
[356459951,1742483479735,-500.0,0.00045205,120]
[356459952,1742483479745,-464.77,0.00045205,120]
[356459953,1742483479755,-624.21,0.00045205,120]
[356459954,1742483479764,-237.32983265,0.00045205,120]
[356459955,1742483479773,-500.0,0.00045205,120]
[356459956,1742483479784,-500.0,0.00045205,120]
[356459957,1742483479794,-294.12745328,0.00045205,120]
[356459958,1742483479803,-351.14,0.00045205,120]
[356459959,1742483479813,-210.63,0.00045205,120]
[356459960,1742483479822,-1058.89,0.00045205,120]
[356459961,1742483479832,-296.51,0.00045205,120]
[356459962,1742483479841,-257.89520641,0.00045205,120]
[356459963,1742483479850,-500.0,0.00045205,120]
[356459964,1742483479859,-500.0,0.00045205,120]
[356459965,1742483479868,-500.0,0.00045205,120]
[356459966,1742483479877,-500.0,0.00045205,120]
[356459967,1742483479886,-280.9,0.00045205,7]
[356459968,1742483479896,-500.0,0.00045205,120]
[356459969,1742483479905,-228.7,0.00045205,120]
[356459970,1742483479915,-231.57,0.00045205,120]
[356459971,1742483479924,-1000.0,0.00045205,120]
[356459972,1742483479934,-159.16680397,0.00045205,120]
[356459973,1742483479943,-500.0,0.00045205,120]
[356459974,1742483479952,-530.62,0.00045205,120]
[356459975,1742483479962,-500.0,0.00045205,120]
[356459976,1742483479971,-500.0,0.00045205,120]
[356459977,1742483479980,-500.0,0.00045205,120]
[356459978,1742483479989,-500.0,0.00045205,120]
[356459979,1742483479998,-500.0,0.00045205,120]
[356459980,1742483480007,-500.0,0.00045205,120]
[356459981,1742483480017,-500.0,0.00045205,120]
[356459982,1742483480026,-704.1,0.00045205,120]
[356459983,1742483480036,-500.0,0.00045205,120]
[356459984,1742483480045,-500.0,0.00045205,120]
[356459985,1742483480054,-549.13,0.00045205,120]
[356459986,1742483480064,-500.0,0.00045205,120]
[356459987,1742483480073,-1471.63,0.00045205,120]
[356459988,1742483480082,-500.0,0.00045205,120]
[356459989,1742483480093,-500.0,0.00045205,7]
[356459990,1742483480103,-500.0,0.00045205,120]
[356459991,1742483480112,-500.0,0.00045205,120]
[356459992,1742483480121,-1183.6,0.00045205,120]
[356459993,1742483480130,-500.0,0.00045205,120]
[356459994,1742483480140,-500.0,0.00045205,120]
[356459995,1742483480150,-500.0,0.00045205,120]
[356459996,1742483480159,-500.0,0.00045205,120]
[356459997,1742483480169,-500.0,0.00045205,120]
[356459998,1742483480178,-476.53073057,0.00045205,120]
[356459999,1742483480187,-500.0,0.00045205,120]
[356460000,1742483480196,-500.0,0.00045205,120]
[356460001,1742483480205,-401.63,0.00045205,120]
[356460002,1742483480215,-500.0,0.00045205,120]
[356460003,1742483480224,-500.0,0.00045205,120]
[356460004,1742483480233,-266.48,0.00045205,120]
[356460005,1742483480242,-610.89,0.00045205,120]
[356460006,1742483480251,-731.59,0.00045205,2]
[356460007,1742483480260,-552.86,0.00045205,120]
[356460008,1742483480270,-744.12,0.00045205,120]
[356460009,1742483480279,-500.0,0.00045205,120]
[356460010,1742483480288,-500.0,0.00045205,120]
[356460011,1742483480298,-500.0,0.00045205,120]
[356460012,1742483480307,-500.0,0.00045205,120]
[356460013,1742483480317,-578.64,0.00045205,120]
[356460014,1742483480326,-500.0,0.00045205,120]
[356460015,1742483480336,-500.0,0.00045205,120]
[356460016,1742483480345,-500.0,0.00045205,120]
[356460017,1742483480355,-500.0,0.00045205,60]
[356460018,1742483480365,-500.0,0.00045205,120]
[356460019,1742483480374,-500.0,0.00045205,120]
[356460020,1742483480383,-500.0,0.00045205,120]
[356460021,1742483480392,-500.0,0.00045205,100]
[356460022,1742483480402,-500.0,0.00045205,120]
[356460023,1742483480411,-500.0,0.00045205,120]
[356460024,1742483480421,-500.0,0.00045205,120]
[356460025,1742483480431,-500.0,0.00045205,120]
[356460026,1742483480441,-500.0,0.00045205,120]
[356460027,1742483480451,-600.89,0.00045205,120]
[356460028,1742483480461,-500.0,0.00045205,120]
[356460029,1742483480470,-500.0,0.00045205,120]
[356460030,1742483480480,-500.0,0.00045205,120]
[356460031,1742483480489,-500.0,0.00045205,120]
[356460032,1742483480499,-500.0,0.00045205,120]
[356460033,1742483480508,-612.19,0.00045205,120]
[356460034,1742483480517,-500.0,0.00045205,120]
[356460035,1742483480527,-608.12,0.00045205,7]
[356460036,1742483480538,-500.0,0.00045205,120]
[356460037,1742483480547,-500.0,0.00045205,120]
[356460038,1742483480557,-500.0,0.00045205,120]
[356460039,1742483480567,-500.0,0.00045205,120]
[356460040,1742483480577,-500.0,0.00045205,120]
[356460041,1742483480591,-500.0,0.00045205,120]
[356460042,1742483480601,-500.0,0.00045205,120]
[356460043,1742483480611,-174.4,0.00045205,120]
[356460044,1742483480621,-216.86,0.00045205,120]
[356460045,1742483480631,-500.0,0.00045205,120]
[356460046,1742483480642,-500.0,0.00045205,120]
[356460047,1742483480652,-500.0,0.00045205,120]
[356460048,1742483480663,-500.0,0.00045205,120]
[356460049,1742483480673,-500.0,0.00045205,120]
[356460050,1742483480684,-500.0,0.00045205,120]
[356460051,1742483480694,-374.33,0.00045205,120]
[356460052,1742483480703,-235.7,0.00045205,120]
[356460053,1742483480713,-2628.96901306,0.00045205,120]
[356460054,1742483480723,-634.67,0.00045205,120]
[356460055,1742483480734,-500.0,0.00045205,120]
[356460056,1742483480746,-500.0,0.00045205,120]
[356460057,1742483480758,-246.92,0.00045205,120]
[356460058,1742483480768,-500.0,0.00045205,120]
[356460059,1742483480781,-408.12337043,0.00045205,120]
[356460060,1742483480793,-299.74164851,0.00045205,120]
[356460061,1742483480803,-574.89,0.00045205,120]
[356460062,1742483480813,-271.62,0.00045205,120]
[356460063,1742483480823,-500.0,0.00045205,120]
[356460064,1742483480833,-49576.28,0.00045205,120]
[356460065,1742483480842,-500.0,0.00045205,120]
[356460066,1742483480852,-541.66,0.00045205,120]
[356460067,1742483480862,-500.0,0.00045205,120]
[356460068,1742483480871,-227.32,0.00045205,120]
[356460069,1742483480881,-644.45,0.00045205,120]
[356460070,1742483480891,-150.19,0.00045206,2]
[356460071,1742483480900,-150.0,0.00045206,120]
[356460072,1742483480910,-10018.0,0.000454,120]
[356460073,1742483480919,-598.1892,0.00045479,120]
[356460074,1742483480929,-224.54,0.00045479,120]
[356460075,1742483480938,-1215.73,0.00045479,2]
[356460076,1742483480947,-500.0,0.00045479,120]
[356460077,1742483480956,-500.0,0.00045479,120]
[356460078,1742483480965,-413.11,0.00045479,120]
[356460079,1742483480975,-500.0,0.00045479,120]
[356460080,1742483480984,-500.0,0.00045479,120]
[356460081,1742483480994,-435.95,0.00045479,120]
[356460082,1742483481003,-180.4,0.00045479,120]
[356460083,1742483481012,-500.0,0.00045479,10]
[356460084,1742483481022,-372.38,0.00045479,120]
[356460085,1742483481034,-704.86,0.00045479,120]
[356460086,1742483481044,-500.0,0.00045479,120]
[356460087,1742483481053,-377.03,0.00045479,120]
[356460088,1742483481063,-500.0,0.00045479,120]
[356460089,1742483481072,-1058.89,0.00045479,120]
[356460090,1742483481082,-500.0,0.00045479,120]
[356460091,1742483481092,-500.0,0.00045479,120]
[356460092,1742483481101,-500.0,0.00045479,120]
[356460093,1742483481111,-500.0,0.00045479,120]
[356460094,1742483481120,-280.9,0.00045479,7]
[356460095,1742483481130,-500.0,0.00045479,120]
[356460096,1742483481139,-1000.0,0.00045479,120]
[356460097,1742483481148,-500.0,0.00045479,120]
[356460098,1742483481158,-500.0,0.00045479,120]
[356460099,1742483481167,-500.0,0.00045479,120]
[356460100,1742483481177,-500.0,0.00045479,120]
[356460101,1742483481187,-500.0,0.00045479,120]
[356460102,1742483481196,-500.0,0.00045479,120]
[356460103,1742483481206,-500.0,0.00045479,120]
[356460104,1742483481215,-704.1,0.00045479,120]
[356460105,1742483481225,-500.0,0.00045479,120]
[356460106,1742483481235,-265.51,0.00045479,120]
[356460107,1742483481244,-500.0,0.00045479,120]
[356460108,1742483481253,-500.0,0.00045479,120]
[356460109,1742483481263,-1471.63,0.00045479,120]
[356460110,1742483481272,-500.0,0.00045479,7]
[356460111,1742483481285,-500.0,0.00045479,120]
[356460112,1742483481295,-500.0,0.00045479,120]
[356460113,1742483481304,-1183.6,0.00045479,120]
[356460114,1742483481315,-549.24,0.00045479,120]
[356460115,1742483481324,-500.0,0.00045479,120]
[356460116,1742483481334,-169.76865146,0.00045479,120]
[356460117,1742483481343,-500.0,0.00045479,120]
[356460118,1742483481353,-500.0,0.00045479,120]
[356460119,1742483481362,-500.0,0.00045479,120]
[356460120,1742483481372,-160.03,0.00045479,120]
[356460121,1742483481381,-500.0,0.00045479,120]
[356460122,1742483481390,-215.02,0.00045479,120]
[356460123,1742483481399,-731.59,0.00045479,2]
[356460124,1742483481409,-744.12,0.00045479,120]
[356460125,1742483481419,-577.47,0.00045479,120]
[356460126,1742483481429,-500.0,0.00045479,120]
[356460127,1742483481439,-500.0,0.00045479,120]
[356460128,1742483481450,-431.15,0.00045479,120]
[356460129,1742483481460,-500.0,0.00045479,120]
[356460130,1742483481470,-231.17,0.00045479,120]
[356460131,1742483481479,-184.37,0.00045479,120]
[356460132,1742483481489,-500.0,0.00045479,60]
[356460133,1742483481498,-500.0,0.00045479,120]
[356460134,1742483481508,-500.0,0.00045479,120]
[356460135,1742483481517,-500.0,0.00045479,120]
[356460136,1742483481526,-500.0,0.00045479,100]
[356460137,1742483481538,-535.9602669,0.00045479,120]
[356460138,1742483481547,-500.0,0.00045479,120]
[356460139,1742483481557,-271.06,0.00045479,120]
[356460140,1742483481567,-500.0,0.00045479,120]
[356460141,1742483481578,-500.0,0.00045479,120]
[356460142,1742483481591,-500.0,0.00045479,120]
[356460143,1742483481601,-500.0,0.00045479,120]
[356460144,1742483481610,-500.0,0.00045479,120]
[356460145,1742483481621,-500.0,0.00045479,120]
[356460146,1742483481631,-218.36,0.00045479,120]
[356460147,1742483481640,-500.0,0.00045479,120]
[356460148,1742483481650,-500.0,0.00045479,120]
[356460149,1742483481660,-500.0,0.00045479,120]
[356460150,1742483481670,-500.0,0.00045479,120]
[356460151,1742483481679,-500.0,0.00045479,120]
[356460152,1742483481688,-500.0,0.00045479,120]
[356460153,1742483481698,-500.0,0.00045479,120]
[356460154,1742483481707,-500.0,0.00045479,120]
[356460155,1742483481717,-500.0,0.00045479,120]
[356460156,1742483481727,-500.0,0.00045479,120]
[356460157,1742483481736,-568.9,0.00045479,120]
[356460158,1742483481746,-500.0,0.00045479,120]
[356460159,1742483481755,-500.0,0.00045479,120]
[356460160,1742483481765,-500.0,0.00045479,120]
[356460161,1742483481774,-500.0,0.00045479,120]
[356460162,1742483481785,-500.0,0.00045479,120]
[356460163,1742483481900,-243.8,0.00045479,120]
[356460164,1742483481910,-500.0,0.00045479,120]
[356460165,1742483481920,-49576.28,0.00045479,120]
[356460166,1742483481929,-500.0,0.00045479,120]
[356460167,1742483481939,-541.66,0.00045479,120]
[356460168,1742483481949,-500.0,0.00045479,120]
[356460169,1742483481958,-81345.13039492,0.000455,120]
[356460170,1742483481968,-232.80420577,0.000456,120]
[356460171,1742483481977,-500.0,0.00045639,120]
[356460172,1742483481986,-315.72368074,0.00045639,120]
[356460173,1742483481996,-500.0,0.00045674,120]
[356460174,1742483482005,-1215.73,0.00045753,2]
[356460175,1742483482015,-500.0,0.00045753,120]
[356460176,1742483482024,-500.0,0.00045753,120]
[356460177,1742483482034,-500.0,0.00045753,120]
[356460178,1742483482043,-500.0,0.00045753,120]
[356460179,1742483482053,-500.0,0.00045753,10]
[356460180,1742483482062,-704.86,0.00045753,120]
[356460181,1742483482071,-500.0,0.00045753,120]
[356460182,1742483482080,-560.65973703,0.00045753,120]
[356460183,1742483482090,-1058.89,0.00045753,120]
[356460184,1742483482099,-500.0,0.00045753,120]
[356460185,1742483482108,-500.0,0.00045753,120]
[356460186,1742483482118,-500.0,0.00045753,120]
[356460187,1742483482127,-573.84114794,0.00045753,120]
[356460188,1742483482137,-280.9,0.00045753,7]
[356460189,1742483482146,-295.88549317,0.00045753,120]
[356460190,1742483482156,-1000.0,0.00045753,120]
[356460191,1742483482165,-597.66733244,0.00045753,120]
[356460192,1742483482175,-500.0,0.00045753,120]
[356460193,1742483482184,-500.0,0.00045753,120]
[356460194,1742483482193,-500.0,0.00045753,120]
[356460195,1742483482203,-500.0,0.00045753,120]
[356460196,1742483482213,-500.0,0.00045753,120]
[356460197,1742483482222,-704.1,0.00045753,120]
[356460198,1742483482231,-500.0,0.00045753,120]
[356460199,1742483482241,-500.0,0.00045753,120]
[356460200,1742483482250,-500.0,0.00045753,120]
[356460201,1742483482260,-1471.63,0.00045753,120]
[356460202,1742483482269,-500.0,0.00045753,7]
[356460203,1742483482280,-500.0,0.00045753,120]
[356460204,1742483482289,-500.0,0.00045753,120]
[356460205,1742483482299,-1183.6,0.00045753,120]
[356460206,1742483482308,-1687.99,0.00045753,120]
[356460207,1742483482318,-1687.99,0.00045753,120]
[356460208,1742483482327,-373.51,0.00045753,120]
[356460209,1742483482337,-500.0,0.00045753,120]
[356460210,1742483482347,-500.0,0.00045753,120]
[356460211,1742483482356,-500.0,0.00045753,120]
[356460212,1742483482366,-500.0,0.00045753,120]
[356460213,1742483482375,-500.0,0.00045753,120]
[356460214,1742483482385,-731.59,0.00045753,2]
[356460215,1742483482394,-744.12,0.00045753,120]
[356460216,1742483482404,-500.0,0.00045753,120]
[356460217,1742483482413,-500.0,0.00045753,120]
[356460218,1742483482423,-500.0,0.00045753,120]
[356460219,1742483482432,-500.0,0.00045753,60]
[356460220,1742483482441,-500.0,0.00045753,120]
[356460221,1742483482451,-500.0,0.00045753,120]
[356460222,1742483482460,-500.0,0.00045753,120]
[356460223,1742483482470,-500.0,0.00045753,120]
[356460224,1742483482480,-537.98,0.00045753,120]
[356460225,1742483482489,-500.0,0.00045753,120]
[356460226,1742483482499,-500.0,0.00045753,120]
[356460227,1742483482508,-551.78,0.00045753,120]
[356460228,1742483482518,-500.0,0.00045753,120]
[356460229,1742483482528,-500.0,0.00045753,120]
[356460230,1742483482540,-500.0,0.00045753,120]
[356460231,1742483482550,-500.0,0.00045753,120]
[356460232,1742483482560,-500.0,0.00045753,120]
[356460233,1742483482570,-555.69,0.00045753,120]
[356460234,1742483482585,-500.0,0.00045753,120]
[356460235,1742483482594,-631.87,0.00045753,120]
[356460236,1742483482603,-500.0,0.00045753,120]
[356460237,1742483482612,-511.30841587,0.00045753,120]
[356460238,1742483482623,-500.0,0.00045753,120]
[356460239,1742483482632,-500.0,0.00045753,120]
[356460240,1742483482642,-500.0,0.00045753,120]
[356460241,1742483482656,-500.0,0.00045753,120]
[356460242,1742483482666,-500.0,0.00045753,120]
[356460243,1742483482675,-500.0,0.00045753,120]
[356460244,1742483482685,-500.0,0.00045753,120]
[356460245,1742483482694,-500.0,0.00045753,120]
[356460246,1742483482704,-49576.28,0.00045753,120]
[356460247,1742483482714,-153.5,0.00045753,120]
[356460248,1742483482724,-541.66,0.00045753,120]
[356460249,1742483482734,-301.63,0.00045753,120]
[356460250,1742483482743,-2000.0,0.00045757,3]
[356460251,1742483482754,-152.0,0.00045762,20]
[356460252,1742483482764,-196.2265853,0.000458,120]
[356460253,1742483482773,-1682.51723282,0.000458,120]
[356460254,1742483482786,-3000.0,0.000458,2]
[356460255,1742483482795,-291.83,0.000458,39]
[356460256,1742483482804,-291.83,0.000458,39]
[356460257,1742483482813,-291.83,0.000458,39]
[356460258,1742483482823,-291.83,0.000458,39]
[356460259,1742483482832,-291.83,0.000458,39]
[356460260,1742483482841,-291.83,0.000458,39]
[356460261,1742483482850,-291.83,0.000458,39]
[356460262,1742483482860,-291.83,0.000458,39]
[356460263,1742483482869,-291.83,0.000458,39]
[356460264,1742483482878,-291.83,0.000458,39]
[356460265,1742483482887,-291.83,0.000458,39]
[356460266,1742483482896,-291.83,0.000458,39]
[356460267,1742483482906,-291.83,0.000458,39]
[356460268,1742483482915,-291.83,0.000458,39]
[356460269,1742483482924,-291.83,0.000458,39]
[356460270,1742483482934,-291.83,0.000458,39]
[356460271,1742483482943,-150.0,0.000459,40]
[356460272,1742483482951,-2000.0,0.00045956,3]
[356460273,1742483482961,-2003.7975,0.00045956,3]
[356460274,1742483482970,-2003.0818,0.00045956,3]
[356460275,1742483482980,-1000.0,0.0004597,3]
[356460276,1742483482990,-500.0,0.0004597,3]
[356460277,1742483482999,-6961.6035509,0.00045996,2]
[356460278,1742483483008,-1443.6496193,0.00045996,2]
[356460279,1742483483017,-980.0,0.00046,60]
[356460280,1742483483027,-200.0,0.00046,120]
[356460281,1742483483038,-528.15694929,0.00046,120]
[356460282,1742483483047,-409.32524601,0.00046,120]
[356460283,1742483483056,-253.90439,0.00046,120]
[356460284,1742483483066,-1007.0,0.00046,110]
[356460285,1742483483076,-970000.0,0.00046,120]
[356460286,1742483483086,-500.0,0.00046018,60]
[356460287,1742483483096,-1215.73,0.00046027,2]